[Event "FIDE World Cup O12-TB 2024"]
[Site "Batumi"]
[Date "2024.07.01"]
[Round "1.14"]
[White "Martinez Flores, Matias"]
[Black "Nanayakkara, Sanuk"]
[Result "1/2-1/2"]
[ECO "B36"]
[WhiteElo "2080"]
[BlackElo "1714"]
[Annotator "TA"]
[PlyCount "63"]
[EventDate "2024.06.23"]
[EventType "swiss"]
[EventCountry "GEO"]
[SourceTitle "playchess.com"]
[Source "ChessBase"]
[SourceQuality "1"]
[TimeControl "5400+30"]

{[%evp 20,63,54,40,47,28,44,43,44,23,47,51,79,72,81,79,86,67,17,-7,0,-20,-34,-24,0,0,0,0,0,0,0,-5,19,-13,-16,-15,-19,-73,-82,-102,-10,-12,-8,-10,0,0]} 1. e4 {[%emt 0:01:21]} c5 {[%emt 0:00:30]} 2. Nf3 {[%emt 0:00:11]} Nc6 {[%emt 0:00:15]} 3. d4 {[%emt 0:00:07]} cxd4 {[%emt 0:00:21]} 4. Nxd4 {[%emt 0:00:07]} g6 {[%emt 0:00:14]} 5. c4 {[%emt 0:00:05]} Nf6 {[%emt 0:00:22]} 6. Nc3 {[%emt 0:00:12]} Nxd4 {[%emt 0:00:28]} 7. Qxd4 {[%emt 0:00:12]} d6 {[%emt 0:00:06]} 8. Be3 {[%emt 0:00:07]} Bg7 {[%emt 0:00:05]} 9. Be2 {[%emt 0:00:05]} O-O {[%emt 0:00:06]} 10. Qd3 {[%emt 0:00:02]} Be6 {[%emt 0:05:05]} 11. O-O {[%emt 0:00:11]} Qa5 {[%emt 0:00:53]} 12. Bd2 {[%emt 0:00:14]} Rfc8 {[%emt 0:02:30]} 13. b3 {[%emt 0:01:41]} a6 {[%emt 0:17:03] White is slightly better.} 14. Kh1 {[%emt 0:10:18]} Rab8 {[%emt 0:06:37]} 15. f4 {[%emt 0:12:22]} Qc5 {[%emt 0:11:22][%cal Ob7b5]} 16. Rac1 {[%emt 0:07:30]} (16. f5 {is interesting.} Bd7 17. b4 Qxb4 18. fxg6 hxg6 19. e5) 16... Bd7 {[%emt 0:05:54]} 17. Be3 {[%emt 0:12:15]} Qa5 {[%emt 0:04:35]} 18. Bd4 {[%emt 0:08:01]} b5 {[%emt 0:12:18]} 19. Bxf6 {[%emt 0:05:48]} bxc4 {[%emt 0:06:04]} 20. bxc4 {[%emt 0:00:06]} (20. Qd5 $5 Rc5 (20... Qxd5 21. Nxd5 Bxf6 22. Bxc4 $11) 21. b4 Rxb4 22. Qa8+ Rc8 23. Qa7 $11) 20... Bxf6 {[%emt 0:00:19]} 21. Nd5 {[%emt 0:01:22]} Qxa2 {[%emt 0:15:01]} 22. Nxf6+ {[%emt 0:02:09]} exf6 {[%emt 0:00:02]} 23. Ra1 {[%emt 0:00:19]} Qb3 {[%emt 0:00:18]} 24. Qxd6 {[%emt 0:05:16]} Be6 {[%emt 0:00:41]} 25. c5 {[%emt 0:16:06][%cal Oa1c1]} Qc2 {[%emt 0:00:56]} 26. Bxa6 {[%emt 0:03:18] [#]} (26. Qxa6 Qxe4 (26... Qxc5 27. f5 $11) 27. f5 Bxf5 $17) 26... Rb2 $1 {[%emt 0:04:06][%csl Gb2][%cal Rc2g2]} 27. Rg1 {[%emt 0:01:33]} Qxc5 {[%emt 0:01:00]} ({Of course not} 27... Rxc5 28. f5 Ba2 (28... gxf5 29. Qg3+ Kf8 30. Rad1 $18) 29. Qxf6 $14) (27... Bh3 {with more complications.} 28. Bf1 Qxe4 29. Qxf6 Rc2) 28. Qd1 {[%emt 0:04:09]} (28. Qxc5 $11 Rxc5 29. h3) 28... Rcb8 $17 {[%emt 0:01:43]} 29. Bd3 {[%emt 0:01:48][%cal Of4f5]} f5 {[%emt 0:02:13]} (29... Kg7 $17 30. f5 gxf5 31. exf5 Bxf5) 30. Rc1 $11 {[%emt 0:01:54] The position is equal.} Qa5 {[%emt 0:00:49]} 31. Ra1 {[%emt 0:01:22]} Qc5 {[%emt 0:04:04]} 32. Rc1 {[%emt 0:00:12] Weighted Error Value: White=0.12 (very precise) /Black=0.14 (very precise) .  Mistake:       	White=1     	Black=1      Inaccurate:     	White=1     	Black=1      OK:         	White=10    	Black=7      Best:        	White=1     	---} 1/2-1/2

[Event "FIDE World Cup O12-TB 2024"]
[Site "Batumi"]
[Date "2024.07.01"]
[Round "1.15"]
[White "Li, Yiheng"]
[Black "Pirtac, Alexandru"]
[Result "1-0"]
[ECO "B45"]
[WhiteElo "1886"]
[BlackElo "1977"]
[Annotator "TA"]
[PlyCount "59"]
[EventDate "2024.06.23"]
[EventType "swiss"]
[EventCountry "GEO"]
[SourceTitle "playchess.com"]
[Source "ChessBase"]
[SourceQuality "1"]
[TimeControl "5400+30"]

{[%evp 15,58,15,23,21,27,19,14,18,58,54,41,43,35,41,106,84,104,133,194,191,279,279,347,337,328,332,702,697,716,705,716,718,742,731,947,929,1160,1151,29972,29973,29990,29991,29997,29998,29999]} 1. e4 {[%emt 0:00:02]} c5 {[%emt 0:00:31]} 2. Nf3 {[%emt 0:00:09]} e6 {[%emt 0:00:42]} 3. d4 {[%emt 0:00:04]} cxd4 {[%emt 0:00:14]} 4. Nxd4 {[%emt 0:00:04]} Nf6 {[%emt 0:00:14]} 5. Nc3 {[%emt 0:00:04]} Nc6 {[%emt 0:00:10]} 6. a3 {[%emt 0:00:07]} d5 {[%emt 0:04:25]} 7. Bb5 {[%emt 0:00:05]} Bd7 {[%emt 0:00:42]} 8. exd5 {[%emt 0:00:15]} exd5 {[%emt 0:01:19]} 9. O-O {[%emt 0:00:06]} Be7 {[%emt 0:00:29]} 10. Be2 {[%emt 0:00:06][%cal Bb5e2,Be2f3,Bf3d5][%mdl 32]} O-O {[%emt 0:01:45]} 11. Bf3 {[%emt 0:00:51] The position is equal.} Bc5 {[%emt 0:04:04]} 12. Nb3 {[%emt 0:02:26]} Bd6 {[%emt 0:02:54]} 13. Nxd5 {[%emt 0:02:59]} Nxd5 {[%emt 0:00:29]} 14. Bxd5 {[%emt 0:01:55]} Ne5 {[%emt 0:02:25]} (14... Qc7 $14) 15. Bxb7 $16 {[%emt 0:06:35]} Bg4 {[%emt 0:02:13]} 16. f3 {[%emt 0:03:34]} Qb6+ {[%emt 1:15:54]} (16... Rb8 $16 {was called for.}) 17. Qd4 $18 {[%emt 0:02:08]} Qxb7 {[%emt 0:00:00]} (17... Rab8 {is a better defense.} 18. Qxb6 (18. fxg4 Rxb7 19. Qxb6 Rxb6 $16) 18... axb6) 18. Qxd6 {[%emt 0:01:05]} ({Weaker is} 18. fxg4 Rad8 $14) 18... Bxf3 {[%emt 0:00:00]} 19. Qxe5 {[%emt 0:02:21]} Bxg2 {[%emt 0:00:00]} 20. Na5 {[%emt 0:02:49]} Qc8 {[%emt 0:00:00]} (20... Qe4 21. Qxe4 Bxe4) 21. Kxg2 {[%emt 0:02:31]} Qxc2+ {[%emt 0:00:00]} 22. Rf2 {[%emt 0:03:00]} Qg6+ {[%emt 0:00:00]} 23. Qg3 {[%emt 0:01:17]} Qb6 {[%emt 0:00:00]} 24. b4 {[%emt 0:01:01]} f5 {[%emt 0:00:00]} 25. Bb2 {[%emt 0:00:53]} Rf7 {[%emt 0:00:00] [#]} 26. Rxf5 $3 {[%emt 0:02:16]} Raf8 {[%emt 0:00:00] [#]} (26... Qg6 27. Qxg6) 27. Raf1 $1 {[%emt 0:00:30] White mates.} Qe6 {[%emt 0:00:00]} (27... h5 28. Rxf7) 28. Rxf7 {[%emt 0:00:47]} Rxf7 {[%emt 0:00:00]} 29. Qb8+ {[%emt 0:00:08]} Rf8 {[%emt 0:00:00]} 30. Qxf8# {[%emt 0:00:06] Black did not feel at home in the position after the opening.   Weighted Error Value: White=0.00 (flawless) /Black=0.75.  Mistake:       	---       	Black=4      Inaccurate:     	---       	Black=1      OK:         	White=6     	Black=4      Best:        	White=2     	Black=1} 1-0

[Event "FIDE World Cup O12-TB 2024"]
[Site "Batumi"]
[Date "2024.07.01"]
[Round "1.16"]
[White "Chia, Yu Zhe Ashton"]
[Black "Kristesiashvili, Andria"]
[Result "1/2-1/2"]
[ECO "B31"]
[WhiteElo "2229"]
[BlackElo "1728"]
[Annotator "TA"]
[PlyCount "57"]
[EventDate "2024.06.23"]
[EventType "swiss"]
[EventCountry "GEO"]
[SourceTitle "playchess.com"]
[Source "ChessBase"]
[SourceQuality "1"]
[TimeControl "5400+30"]

{[%evp 10,57,40,0,21,0,6,0,22,0,0,0,0,0,1,7,0,-44,-55,-44,-43,-51,-44,-61,-54,-61,-56,-57,-54,-56,-52,-50,-60,-60,-38,-43,-21,-15,0,0,0,0,0,0,2,0,17,0,7,0]} 1. e4 {[%emt 0:00:03]} c5 {[%emt 0:00:04]} 2. Nf3 {[%emt 0:00:03]} Nc6 {[%emt 0:00:05]} 3. Bb5 {[%emt 0:00:38]} g6 {[%emt 0:00:10]} 4. O-O {[%emt 0:00:25]} Bg7 {[%emt 0:00:10]} 5. Nc3 {[%emt 0:01:24]} Nf6 {[%emt 0:09:47][%cal Bg8f6,Bf6e8,Be8c7][%mdl 32]} 6. d3 {[%emt 0:00:42]} O-O {[%emt 0:04:17]} 7. h3 {[%emt 0:06:45]} Ne8 {[%emt 0:10:42]} 8. a4 {[%emt 0:03:05]} Na5 {[%emt 0:21:40]} 9. d4 {[%emt 0:05:44]} cxd4 {[%emt 0:01:24]} 10. Nxd4 {[%emt 0:00:07]} Nc7 {[%emt 0:00:43]} 11. Be2 {[%emt 0:02:17]} b6 {[%emt 0:11:34]} 12. Be3 {[%emt 0:05:24]} Bb7 {[%emt 0:02:54]} 13. Nb3 {[%emt 0:16:32]} Nxb3 {[%emt 0:03:36]} 14. cxb3 {[%emt 0:00:05]} d5 {[%emt 0:00:47]} 15. exd5 {[%emt 0:01:25]} Nxd5 {[%emt 0:00:05]} 16. Qd2 {[%emt 0:15:17]} Nxe3 {[%emt 0:13:49]} 17. Qxe3 {[%emt 0:00:05]} e6 {[%emt 0:00:36]} 18. Rfd1 {[%emt 0:00:14][%cal Bf1d1,Bd1d7,Bd7d6][%mdl 32]} Qh4 {[%emt 0:06:15]} (18... Qe7 {simplifies} 19. Bf3 Bxf3 20. Qxf3 Rfd8) 19. Rd7 {[%emt 0:02:56]} Bc6 {[%emt 0:00:59] A strong pair of Bishops.} 20. Rd6 {[%emt 0:01:20]} Rac8 {[%emt 0:02:55]} 21. Ba6 {[%emt 0:04:52]} Rc7 {[%emt 0:08:28]} 22. Rad1 {[%emt 0:01:09]} Qe7 {[%emt 0:00:00]} 23. Nb5 {[%emt 0:13:44] The position is equal.} Bd5 {[%emt 0:00:17]} 24. Nxc7 {[%emt 0:01:33]} (24. R6xd5 exd5 25. Nxc7 Qxc7) 24... Qxd6 {[%emt 0:00:03]} 25. Nxd5 {[%emt 0:00:06]} exd5 {[%emt 0:00:04]} 26. Bc4 {[%emt 0:00:35]} d4 {[%emt 0:00:12] Black is weak on the light squares} 27. Qf3 {[%emt 0:00:52]} Qc7 {[%emt 0:00:31]} 28. Re1 {[%emt 0:01:17]} a5 {[%emt 0:00:45]} 29. Re4 {[%emt 0:07:02] Weighted Error Value: White=0.07 (flawless) /Black=0.06 (flawless) .  Inaccurate:     	White=1     	---        OK:         	White=8     	Black=8      Best:        	---       	Black=2} 1/2-1/2

[Event "FIDE World Cup O12-TB 2024"]
[Site "Batumi"]
[Date "2024.07.01"]
[Round "1.17"]
[White "Berdashkevich, Makar"]
[Black "Akhmet, Suleyman"]
[Result "0-1"]
[ECO "B55"]
[WhiteElo "1650"]
[BlackElo "1793"]
[Annotator "NA RC"]
[PlyCount "112"]
[EventDate "2024.06.23"]
[EventType "swiss"]
[EventCountry "GEO"]
[SourceTitle "playchess.com"]
[Source "ChessBase"]
[SourceQuality "1"]
[TimeControl "5400+30"]

1. e4 {[%emt 0:03:42]} c5 {[%emt 0:00:17]} 2. Nf3 {[%emt 0:00:11]} d6 {[%emt 0:00:09]} 3. d4 {[%emt 0:00:07]} cxd4 {[%emt 0:00:03]} 4. Nxd4 {[%emt 0:00:07]} Nf6 {[%emt 0:00:02]} 5. f3 {[%emt 0:01:01]} Nc6 {[%emt 0:00:15]} 6. c4 {[%emt 0:05:30]} Qb6 {[%emt 0:00:14]} 7. Nc2 {[%emt 0:03:34]} e6 {[%emt 0:00:22]} 8. Nc3 {[%emt 0:00:50]} Be7 {[%emt 0:00:04]} 9. Rb1 {[%emt 0:01:01]} O-O {[%emt 0:00:52]} 10. Be3 {[%emt 0:01:21]} Qc7 {[%emt 0:00:32]} 11. Be2 {[%emt 0:02:38]} Rd8 {[%emt 0:00:59]} 12. Bf4 {[%emt 0:35:34]} Ne5 {[%emt 0:18:22]} 13. O-O {[%emt 0:16:25]} Nxc4 {[%emt 0:09:36]} 14. Bxc4 {[%emt 0:02:05]} Qxc4 {[%emt 0:00:09]} 15. Ne3 {[%emt 0:01:05]} Qc6 {[%emt 0:09:56]} 16. Rc1 {[%emt 0:02:31]} Qe8 {[%emt 0:01:33]} 17. Qb3 {[%emt 0:02:43]} Bd7 {[%emt 0:04:57]} 18. Rfd1 {[%emt 0:03:09]} Bc6 {[%emt 0:00:35]} 19. a4 {[%emt 0:01:48]} Nh5 {[%emt 0:04:11]} 20. Bg3 {[%emt 0:02:07]} Bg5 {[%emt 0:00:43]} 21. Bf2 {[%emt 0:03:28]} d5 {[%emt 0:05:28]} 22. exd5 {[%emt 0:04:43]} exd5 {[%emt 0:01:16]} 23. Re1 {[%emt 0:00:54]} Qf8 {[%emt 0:05:42]} 24. h4 {[%emt 0:02:03]} Bh6 {[%emt 0:09:03]} 25. Nf5 {[%emt 0:03:41]} Bxc1 {[%emt 0:00:23]} 26. Rxc1 {[%emt 0:00:06]} Nf4 {[%emt 0:01:11]} 27. Bd4 {[%emt 0:01:01]} Ne6 {[%emt 0:00:15]} 28. Qd1 {[%emt 0:00:32]} g6 {[%emt 0:01:15]} 29. Ne3 {[%emt 0:00:16]} Nxd4 {[%emt 0:00:23]} 30. Qxd4 {[%emt 0:00:09]} Qg7 {[%emt 0:00:05]} 31. Ne2 {[%emt 0:00:31]} Qxd4 {[%emt 0:00:44]} 32. Nxd4 {[%emt 0:00:06]} Bxa4 {[%emt 0:02:14]} 33. b3 {[%emt 0:00:38]} Bc6 {[%emt 0:00:12]} 34. h5 {[%emt 0:00:04]} Rac8 {[%emt 0:00:48]} 35. Re1 {[%emt 0:01:41]} Re8 {[%emt 0:00:43]} 36. Kf2 {[%emt 0:00:24]} f5 {[%emt 0:00:50]} 37. g3 {[%emt 0:00:18]} b6 {[%emt 0:01:14]} 38. Ra1 {[%emt 0:00:52]} a5 {[%emt 0:00:07]} 39. Ra2 {[%emt 0:00:16]} Bb7 {[%emt 0:01:27]} 40. Rd2 {[%emt 0:00:35]} Rc3 {[%emt 0:00:35]} 41. hxg6 {[%emt 0:00:21]} Rexe3 {[%emt 0:00:32]} 42. gxh7+ {[%emt 0:00:03]} Kxh7 {[%emt 0:00:08]} 43. Rd1 {[%emt 0:00:23]} Red3 {[%emt 0:00:14]} 44. Rxd3 {[%emt 0:00:23]} Rxd3 {[%emt 0:00:04]} 45. Nxf5 {[%emt 0:00:04]} Rxb3 {[%emt 0:00:09]} 46. f4 {[%emt 0:00:07]} a4 {[%emt 0:00:03]} 47. Nd4 {[%emt 0:00:07]} Rb2+ {[%emt 0:00:04]} 48. Ke3 {[%emt 0:00:05]} a3 {[%emt 0:00:03]} 49. Ne6 {[%emt 0:00:13]} a2 {[%emt 0:00:05]} 50. Kd4 {[%emt 0:00:04]} a1=Q {[%emt 0:00:07]} 51. Ke5 {[%emt 0:00:08]} Re2+ {[%emt 0:00:05]} 52. Kd6 {[%emt 0:00:16]} Qa3+ {[%emt 0:00:14]} 53. Kd7 {[%emt 0:00:05]} Bc8+ {[%emt 0:00:06]} 54. Kc7 {[%emt 0:00:07]} Rxe6 {[%emt 0:00:06]} 55. Kxc8 {[%emt 0:00:17]} Qe7 {[%emt 0:00:11]} 56. Kb8 {[%emt 0:00:06]} Rd6 {[%emt 0:00:05]} 0-1

[Event "FIDE World Cup O12-TB 2024"]
[Site "Batumi"]
[Date "2024.07.01"]
[Round "1.18"]
[White "Amangeldy, Ramazan"]
[Black "Diasamidze, Rati"]
[Result "1-0"]
[ECO "A48"]
[WhiteElo "1740"]
[BlackElo "1646"]
[Annotator "NA RC"]
[PlyCount "113"]
[EventDate "2024.06.23"]
[EventType "swiss"]
[EventCountry "GEO"]
[SourceTitle "playchess.com"]
[Source "ChessBase"]
[SourceQuality "1"]
[TimeControl "5400+30"]

1. d4 {[%emt 0:00:52]} Nf6 {[%emt 0:00:15]} 2. Bf4 {[%emt 0:00:07]} g6 {[%emt 0:00:10]} 3. e3 {[%emt 0:00:03]} Bg7 {[%emt 0:00:07]} 4. Nf3 {[%emt 0:00:11]} O-O {[%emt 0:00:18]} 5. Be2 {[%emt 0:00:05]} c5 {[%emt 0:01:02]} 6. h3 {[%emt 0:00:13]} Nc6 {[%emt 0:01:34]} 7. Nbd2 {[%emt 0:01:14]} d6 {[%emt 0:03:03]} 8. c3 {[%emt 0:00:12]} cxd4 {[%emt 1:28:01]} 9. exd4 {[%emt 0:00:48]} Re8 {[%emt 0:00:00]} 10. Nc4 {[%emt 0:03:55]} Bf5 {[%emt 0:00:00]} 11. O-O {[%emt 0:12:33]} Rc8 {[%emt 0:01:30]} 12. Bh2 {[%emt 0:07:10]} h5 {[%emt 0:00:00]} 13. Re1 {[%emt 0:00:23]} a6 {[%emt 0:00:00]} 14. a4 {[%emt 0:04:43]} Nd5 {[%emt 0:00:00]} 15. Qb3 {[%emt 0:01:23]} Na5 {[%emt 0:00:00]} 16. Nxa5 {[%emt 0:00:37]} Qxa5 {[%emt 0:00:00]} 17. Qxb7 {[%emt 0:00:39]} Rb8 {[%emt 0:00:00]} 18. Qxa6 {[%emt 0:00:06]} Qxa6 {[%emt 0:00:00]} 19. Bxa6 {[%emt 0:00:09]} Bf6 {[%emt 0:00:16]} 20. Bb5 {[%emt 0:00:16]} Rec8 {[%emt 0:00:31]} 21. Rac1 {[%emt 0:01:29]} Nb6 {[%emt 0:01:12]} 22. Nd2 {[%emt 0:01:21]} Bg5 {[%emt 0:00:48]} 23. f4 {[%emt 0:02:14]} Bh4 {[%emt 0:00:42]} 24. Re2 {[%emt 0:00:03]} Nd5 {[%emt 0:00:44]} 25. Ne4 {[%emt 0:01:19]} Nb4 {[%emt 0:01:03]} 26. Rf1 {[%emt 0:01:01]} Nd5 {[%emt 0:00:51]} 27. Bg3 {[%emt 0:00:07]} Bxe4 {[%emt 0:00:33]} 28. Bxh4 {[%emt 0:00:07]} f5 {[%emt 0:00:48]} 29. Rff2 {[%emt 0:00:30]} Kf7 {[%emt 0:00:20]} 30. Bg5 {[%emt 0:00:36]} e6 {[%emt 0:00:16]} 31. Rd2 {[%emt 0:00:17]} Ne3 {[%emt 0:00:27]} 32. Rfe2 {[%emt 0:01:28]} Nc4 {[%emt 0:00:09]} 33. Rd1 {[%emt 0:00:08]} d5 {[%emt 0:00:35]} 34. Bh4 {[%emt 0:00:09]} Ra8 {[%emt 0:02:15]} 35. Ra1 {[%emt 0:01:06]} Na5 {[%emt 0:00:00]} 36. Ra3 {[%emt 0:01:33]} Nc4 {[%emt 0:00:00]} 37. Ra1 {[%emt 0:02:42]} Nd6 {[%emt 0:00:08]} 38. Ree1 {[%emt 0:00:19]} Nc4 {[%emt 0:00:35]} 39. b4 {[%emt 0:04:23]} Nd2 {[%emt 0:00:59]} 40. Re3 {[%emt 0:01:49]} Nb3 {[%emt 0:00:38]} 41. Ra3 {[%emt 0:00:10]} Nd2 {[%emt 0:00:11]} 42. Be1 {[%emt 0:00:39]} Nc4 {[%emt 0:00:25]} 43. Bxc4 {[%emt 0:00:05]} Rxc4 {[%emt 0:00:04]} 44. Re2 {[%emt 0:00:11]} Ke8 {[%emt 0:00:19]} 45. Rb2 {[%emt 0:00:08]} Kd7 {[%emt 0:00:17]} 46. a5 {[%emt 0:00:05]} Rcc8 {[%emt 0:00:30]} 47. b5 {[%emt 0:00:29]} Kc7 {[%emt 0:00:19]} 48. a6 {[%emt 0:00:48]} Rcb8 {[%emt 0:00:27]} 49. c4 {[%emt 0:00:38]} dxc4 {[%emt 0:00:12]} 50. Ba5+ {[%emt 0:00:08]} Kd7 {[%emt 0:00:12]} 51. Bc3 {[%emt 0:00:27]} Bd5 {[%emt 0:00:15]} 52. b6 {[%emt 0:00:12]} Bc6 {[%emt 0:00:39]} 53. b7 {[%emt 0:01:23]} Ra7 {[%emt 0:00:27]} 54. d5 {[%emt 0:00:43]} Bxb7 {[%emt 0:00:59]} 55. Be5 {[%emt 0:01:19]} c3 {[%emt 0:00:36]} 56. Rxc3 {[%emt 0:00:30]} Rc8 {[%emt 0:00:22]} 57. Rxb7+ {[%emt 0:00:41]} 1-0

[Event "FIDE World Cup O12-TB 2024"]
[Site "Batumi"]
[Date "2024.07.01"]
[Round "1.19"]
[White "Mamikonyan, Artem T"]
[Black "Amreyev, Azat"]
[Result "1-0"]
[ECO "C19"]
[WhiteElo "1855"]
[BlackElo "1704"]
[Annotator "NA RC"]
[PlyCount "151"]
[EventDate "2024.06.23"]
[EventType "swiss"]
[EventCountry "GEO"]
[SourceTitle "playchess.com"]
[Source "ChessBase"]
[SourceQuality "1"]
[TimeControl "5400+30"]

1. e4 {[%emt 0:00:04]} e6 {[%emt 0:00:37]} 2. d4 {[%emt 0:00:35]} d5 {[%emt 0:00:10]} 3. Nc3 {[%emt 0:00:37]} Bb4 {[%emt 0:00:16]} 4. e5 {[%emt 0:00:48]} c5 {[%emt 0:00:29]} 5. a3 {[%emt 0:00:10]} Bxc3+ {[%emt 0:00:07]} 6. bxc3 {[%emt 0:00:06]} Ne7 {[%emt 0:00:25]} 7. Nf3 {[%emt 0:01:47]} b6 {[%emt 0:05:23]} 8. Bd3 {[%emt 0:02:48]} Ba6 {[%emt 0:02:28]} 9. h4 {[%emt 0:01:03]} Bxd3 {[%emt 0:01:03]} 10. cxd3 {[%emt 0:06:05]} cxd4 {[%emt 0:01:43]} 11. cxd4 {[%emt 0:08:20]} Nbc6 {[%emt 0:00:59]} 12. h5 {[%emt 0:01:15]} h6 {[%emt 0:00:50]} 13. g4 {[%emt 0:03:42]} Qd7 {[%emt 0:06:53]} 14. Rb1 {[%emt 0:07:05]} Rc8 {[%emt 0:01:01]} 15. Bd2 {[%emt 0:03:11]} O-O {[%emt 0:06:19]} 16. Rg1 {[%emt 0:14:20]} Kh7 {[%emt 0:01:30]} 17. Kf1 {[%emt 0:09:52]} f6 {[%emt 0:03:22]} 18. Kg2 {[%emt 0:03:30]} fxe5 {[%emt 0:04:34]} 19. dxe5 {[%emt 0:01:26]} d4 {[%emt 0:00:43]} 20. Re1 {[%emt 0:00:14]} Qd5 {[%emt 0:04:45]} 21. Re4 {[%emt 0:03:28]} Rf7 {[%emt 0:00:30]} 22. g5 {[%emt 0:13:10]} Rf5 {[%emt 0:01:12]} 23. Bf4 {[%emt 0:00:32]} Rcf8 {[%emt 0:00:54]} 24. Kg3 {[%emt 0:00:13]} b5 {[%emt 0:09:54]} 25. Qe2 {[%emt 0:05:33]} Qd8 {[%emt 0:07:17]} 26. g6+ {[%emt 0:08:40]} Kg8 {[%emt 0:00:16]} 27. Rh1 {[%emt 0:00:09]} Nd5 {[%emt 0:00:25]} 28. Rh4 {[%emt 0:00:04]} Rxf4 {[%emt 0:08:19]} 29. Rhxf4 {[%emt 0:00:24]} Rxf4 {[%emt 0:00:04]} 30. Rxf4 {[%emt 0:00:05]} Nxf4 {[%emt 0:00:06]} 31. Kxf4 {[%emt 0:00:05]} Qf8+ {[%emt 0:00:13]} 32. Kg3 {[%emt 0:00:12]} Qf5 {[%emt 0:00:21]} 33. Qc2 {[%emt 0:00:30]} Ne7 {[%emt 0:02:44]} 34. Qc7 {[%emt 0:04:19]} Nxg6 {[%emt 0:01:15]} 35. hxg6 {[%emt 0:01:16]} Qxg6+ {[%emt 0:00:08]} 36. Kf4 {[%emt 0:00:21]} Qf5+ {[%emt 0:00:38]} 37. Kg3 {[%emt 0:00:05]} Qg6+ {[%emt 0:00:05]} 38. Kh4 {[%emt 0:00:17]} Qxd3 {[%emt 0:00:48]} 39. Qc6 {[%emt 0:00:39]} Qf5 {[%emt 0:01:23]} 40. Kg3 {[%emt 0:01:31]} Qg6+ {[%emt 0:00:20]} 41. Kh2 {[%emt 0:00:18]} Qf5 {[%emt 0:01:12]} 42. Kg2 Kh7 {[%emt 0:00:30]} 43. Kf1 Qd3+ {[%emt 0:00:30]} 44. Ke1 {[%emt 0:01:40]} Qb1+ {[%emt 0:00:30]} 45. Kd2 {[%emt 0:00:30]} Qb2+ {[%emt 0:00:30]} 46. Kd3 {[%emt 0:00:30]} Qxa3+ 47. Kxd4 Qa2 {[%emt 0:01:41]} 48. Ke3 {[%emt 0:00:50]} Qb3+ {[%emt 0:00:43]} 49. Kf4 {[%emt 0:01:11]} Qa2 {[%emt 0:05:30]} 50. Kg3 {[%emt 0:00:45]} a6 {[%emt 0:03:41]} 51. Nd4 {[%emt 0:00:36]} Qb2 {[%emt 0:01:03]} 52. Qe4+ {[%emt 0:00:13]} Kh8 {[%emt 0:00:14]} 53. Kg2 {[%emt 0:00:39]} Qa2 {[%emt 0:00:19]} 54. Kg3 {[%emt 0:00:53]} Qb2 {[%emt 0:00:24]} 55. Nf3 {[%emt 0:00:22]} Qa2 {[%emt 0:03:22]} 56. Nh4 {[%emt 0:00:31]} Qb3+ {[%emt 0:04:46]} 57. f3 {[%emt 0:00:30]} Qc4 {[%emt 0:02:14]} 58. Ng6+ {[%emt 0:00:42]} Kh7 {[%emt 0:01:35]} 59. Nf8+ {[%emt 0:00:07]} Kg8 {[%emt 0:00:07]} 60. Qxc4 {[%emt 0:00:05]} bxc4 {[%emt 0:00:10]} 61. Nxe6 {[%emt 0:00:06]} a5 {[%emt 0:00:19]} 62. Nd4 {[%emt 0:00:26]} a4 {[%emt 0:00:19]} 63. Nb5 {[%emt 0:00:15]} Kf7 {[%emt 0:00:06]} 64. Kf4 {[%emt 0:00:32]} Ke6 {[%emt 0:00:19]} 65. Ke4 {[%emt 0:00:04]} h5 {[%emt 0:00:21]} 66. Nd4+ {[%emt 0:00:58]} Ke7 {[%emt 0:00:36]} 67. Nf5+ {[%emt 0:00:10]} Kf7 {[%emt 0:01:02]} 68. Kd5 {[%emt 0:01:25]} c3 {[%emt 0:00:31]} 69. e6+ {[%emt 0:00:47]} Kf6 {[%emt 0:00:15]} 70. Ne3 {[%emt 0:00:12]} h4 {[%emt 0:00:12]} 71. Kd6 {[%emt 0:00:04]} h3 {[%emt 0:00:07]} 72. e7 {[%emt 0:00:04]} h2 {[%emt 0:00:08]} 73. e8=Q {[%emt 0:03:04]} h1=Q {[%emt 0:00:19]} 74. Qf8+ {[%emt 0:00:00]} Kg6 {[%emt 0:00:20]} 75. Qf5+ {[%emt 0:00:00]} Kh6 {[%emt 0:00:04]} 76. Ng4# {[%emt 0:00:00]} 1-0